bitfinex-derivatives/quotes_ETHF0:USTF0_20250701
["timestamp","ask_amount","ask_price","bid_price","bid_amount"]
[1751366071257,0.81353,2457.8,2457.7,8.00212958]
[1751366071557,0.81353,2457.8,2457.7,8.81568958]
[1751366072862,0.81353,2457.8,2457.7,10.03099626]
[1751366073760,0.81353,2457.8,2457.7,7.97039626]
[1751366074061,0.81353,2457.8,2457.7,7.15683626]
[1751366074265,0.81353,2457.8,2457.7,7.97039626]
[1751366074758,0.81353,2457.8,2457.7,3.49693242]
[1751366075066,0.81353,2457.8,2457.7,2.68337242]
[1751366075963,0.81353,2457.8,2457.7,3.49693242]
[1751366079269,0.81353,2457.8,2457.7,2.28162574]
[1751366080966,0.81353,2457.8,2457.7,1.46806574]
[1751366081469,0.81353,2457.8,2457.7,2.28162574]
[1751366082274,0.81353,2457.8,2457.7,3.48830546]
[1751366082968,0.81353,2457.8,2457.7,2.67474546]
[1751366083467,0.81353,2457.8,2457.7,3.48830546]
[1751366084366,0.81353,2457.8,2457.7,3.90121992]
[1751366084870,0.81353,2457.8,2457.7,3.49019454]
[1751366085273,0.81353,2457.8,2457.7,3.90121992]
[1751366085770,0.81353,2457.8,2457.7,6.23225511]
[1751366086171,0.81353,2457.8,2457.7,4.61266093]
[1751366086368,0.81353,2457.8,2457.7,6.23225511]
[1751366087063,0.81353,2457.8,2457.7,4.61266093]
[1751366087267,0.81353,2457.8,2457.7,7.04205221]
[1751366088270,0.81353,2457.8,2457.7,4.61266093]
[1751366089182,0.81353,2457.8,2457.7,7.03875086]
[1751366089382,0.81353,2457.8,2457.7,4.61266093]
[1751366093281,0.81353,2457.8,2457.7,7.04072259]
[1751366095280,0.81353,2457.8,2457.7,4.61266093]
[1751366098482,13.38693,2457.9,2457.8,0.81353]
[1751366098675,13.38693,2457.9,2457.8,4.71261371]
[1751366098979,13.38693,2457.9,2457.8,2.28159574]
[1751366100486,12.5734,2457.9,2457.8,2.28159574]
[1751366100781,12.5734,2457.9,2457.8,4.71261371]
[1751366101582,11.92,2457.9,2457.8,4.71261371]
[1751366102184,11.92,2457.9,2457.8,6.04101371]
[1751366104184,11.92,2457.9,2457.8,4.71261371]
[1751366105680,12.7335,2457.9,2457.8,3.89908371]
[1751366107386,12.7335,2457.9,2457.8,4.71261371]
[1751366107578,12.7335,2457.9,2457.8,7.0436489]
[1751366108988,12.7335,2457.9,2457.8,4.71261371]
[1751366111584,12.7335,2457.9,2457.8,1.46806574]
[1751366111778,12.7335,2457.9,2457.8,3.09058024]
[1751366111979,14.1035,2457.9,2457.8,2.68511042]
[1751366113183,14.8192,2457.9,2457.8,2.68511042]
[1751366115390,14.8192,2457.9,2457.8,1.46806574]
[1751366126999,17.15023519,2457.9,2457.8,1.46806574]
[1751366127496,0.81356,2457.7,2457.6,1.21704468]
[1751366127795,3.14459519,2457.7,2457.6,1.21704468]
[1751366127999,0.8136,2457.6,2457.5,1.21704468]
[1751366128199,2.1282,2457.6,2457.5,1.21704468]
[1751366129205,2.1282,2457.6,2457.5,2.03067468]
[1751366131591,60.7392,2457.6,2457.5,2.03067468]
[1751366132302,60.7392,2457.6,2457.5,1.21704468]
[1751366133199,0.81363,2457.5,2457.4,2.03070468]
[1751366133393,1.50183,2457.5,2457.4,2.03070468]
[1751366133602,1.50183,2457.5,2457.4,1.21704468]
[1751366133805,1.50183,2457.5,2457.4,2.03070468]
[1751366136404,1.50183,2457.5,2457.4,0.81366]
[1751366136602,0.81363,2457.5,2457.4,0.81366]
[1751366139505,0.81363,2457.5,2457.4,2.19589146]
[1751366140405,0.81363,2457.5,2457.4,3.81840596]
[1751366144305,59.42463,2457.6,2457.5,0.81363]
[1751366144505,59.42463,2457.6,2457.5,3.41463808]
[1751366144705,59.42463,2457.6,2457.5,4.07863808]
[1751366148705,59.42463,2457.6,2457.5,3.26500808]
[1751366149713,59.42463,2457.6,2457.5,2.60100808]
[1751366150912,59.42463,2457.6,2457.5,3.41463808]
[1751366152415,59.42463,2457.6,2457.5,2.60100808]
[1751366153410,60.80163,2457.6,2457.5,2.60100808]
[1751366153613,86.05863,2457.6,2457.5,2.60100808]
[1751366153913,86.05863,2457.6,2457.5,3.41463808]
[1751366154102,86.05863,2457.6,2457.5,2.60100808]
[1751366154606,60.80163,2457.6,2457.5,2.60100808]
[1751366154814,86.05463,2457.6,2457.5,2.60100808]
[1751366155610,60.80163,2457.6,2457.5,2.60100808]
[1751366155813,86.05063,2457.6,2457.5,2.60100808]
[1751366157315,86.05063,2457.6,2457.5,1.38223146]
[1751366160611,83.86,2457.6,2457.3,2.43101797]
[1751366160818,2.03432,2457.3,2456.8,4.04898546]
[1751366161116,0.81393,2456.7,2456.6,0.8139]
[1751366162217,0.81393,2456.6,2456.5,0.6581]
[1751366162411,12.55993,2456.6,2456.5,0.6581]
[1751366163321,12.55993,2456.6,2456.5,1.47205]
[1751366164214,11.746,2456.6,2456.5,1.47205]
[1751366164414,0.81387,2456.8,2456.7,0.8139]
[1751366164618,12.56187,2456.8,2456.7,4.36318654]
[1751366165616,0.81387,2456.8,2456.7,3.14493519]
[1751366165817,12.56187,2456.8,2456.7,3.14493519]
[1751366166116,12.56187,2456.8,2456.7,0.8139]
[1751366166917,0.81387,2456.8,2456.7,0.8139]
[1751366167118,0.81385,2456.9,2456.8,0.81381]
[1751366167323,12.56185,2456.9,2456.8,0.81381]
[1751366171619,0.8139,2456.8,2456.7,0.81387]
[1751366171819,0.8139,2456.7,2456.6,0.8139]
[1751366172023,1.4805,2456.7,2456.6,0.8139]
[1751366172923,1.4805,2456.7,2456.6,2.12127844]
[1751366174526,1.4805,2456.7,2456.6,1.30737844]
[1751366174726,2.1572,2456.7,2456.6,1.30737844]
[1751366175127,2.1572,2456.7,2456.6,2.12130844]
[1751366189335,0.81387,2456.8,2456.7,0.81386]
[1751366189535,0.81387,2456.8,2456.7,3.34074762]
[1751366189731,0.81387,2456.8,2456.7,2.12123844]
[1751366190037,0.81387,2456.8,2456.7,3.34074762]
[1751366191040,12.48887,2456.8,2456.7,3.34074762]
[1751366191537,12.48887,2456.8,2456.7,2.52688762]
[1751366191738,12.48887,2456.8,2456.3,2.44048563]
[1751366191739,0.814,2456.4,2456.3,2.44048563]
[1751366192036,3.14503519,2456.4,2456.3,2.44048563]
[1751366193137,0.814,2456.4,2456.3,2.44048563]
[1751366193831,0.814,2456.4,2456.3,0.81401]
[1751366194235,12.49,2456.4,2456.3,0.81401]
[1751366194532,12.49,2456.4,2456.3,3.24674007]
[1751366196645,12.49,2456.4,2456.3,0.81401]
[1751366200656,0.814,2456.4,2456.3,0.81401]
[1751366200851,12.49,2456.4,2456.3,0.81401]
[1751366203555,0.814,2456.4,2456.3,0.81401]
[1751366203755,12.49,2456.4,2456.3,2.08994698]
[1751366204058,0.814,2456.4,2456.3,2.08994698]
[1751366204259,12.49,2456.4,2456.3,2.08994698]
[1751366206058,0.814,2456.4,2456.3,2.08994698]
[1751366206257,12.49,2456.4,2456.3,2.08994698]
[1751366206758,0.814,2456.4,2456.3,2.08994698]
[1751366206958,0.81399,2456.5,2456.4,0.81396]
[1751366207159,12.48999,2456.5,2456.4,2.08989698]
[1751366211159,12.48999,2456.5,2456.4,1.27593698]
[1751366211755,13.82039,2456.5,2456.4,1.27593698]
[1751366212059,0.81409,2456.2,2456.1,0.81407]
[1751366218664,12.42509,2456.2,2456.1,0.81407]
[1751366221667,0.81409,2456.2,2456.1,0.81407]
[1751366221866,12.42509,2456.2,2456.1,0.81407]
[1751366223267,0.81409,2456.2,2456.1,0.81407]
[1751366223467,12.42509,2456.2,2456.1,0.81407]
[1751366223665,0.81409,2456.2,2456.1,0.81407]
[1751366223866,0.81409,2456.2,2456.1,2.07777518]
[1751366223867,12.42509,2456.2,2456.1,2.07777518]
[1751366225269,0.81409,2456.2,2456.1,2.07777518]
[1751366225565,0.81422,2455.9,2455.8,2.44072909]
[1751366225766,0.81422,2455.9,2455.8,3.25489909]
[1751366226073,0.81422,2455.9,2455.8,0.81417]
[1751366226764,0.81414,2456.0,2455.9,0.81413]
[1751366228370,3.55163,2456.1,2456.0,0.81413]
[1751366228565,15.16363,2456.1,2456.0,0.81413]
[1751366229367,0.81416,2456.0,2455.9,0.81415]
[1751366229765,12.42616,2456.0,2455.9,0.81415]
[1751366230567,0.81416,2455.9,2455.8,1.47007]
[1751366231173,12.42616,2455.9,2455.8,1.47007]
[1751366232468,12.42716,2455.9,2455.8,1.47007]
[1751366233674,12.42716,2455.9,2455.8,0.81417]
[1751366234867,11.613,2455.9,2455.8,0.81417]
[1751366235265,12.42716,2455.9,2455.8,0.81417]
[1751366235468,0.81416,2455.9,2455.8,0.81417]
[1751366235669,12.42716,2455.9,2455.8,0.81417]
[1751366236776,0.81416,2455.9,2455.8,0.81417]
[1751366236973,12.42716,2455.9,2455.8,0.81417]
[1751366239875,0.81423,2455.8,2455.7,0.81421]
[1751366241480,0.81423,2455.7,2455.6,0.81423]
[1751366241676,1.53323,2455.7,2455.6,0.81423]
[1751366244683,0.719,2455.7,2455.6,0.81423]
[1751366245082,0.719,2455.7,2455.6,1.49453]
[1751366245285,12.303,2455.7,2455.6,1.49453]
[1751366246582,0.719,2455.7,2455.6,1.49453]
[1751366246985,12.303,2455.7,2455.6,1.49453]
[1751366250581,0.719,2455.7,2455.6,1.49453]
[1751366250787,12.304,2455.7,2455.6,1.49453]
[1751366252089,0.719,2455.7,2455.6,1.49453]
[1751366252386,12.304,2455.7,2455.6,1.49453]
[1751366253488,0.719,2455.7,2455.6,1.49453]
[1751366253688,12.304,2455.7,2455.6,1.49453]
[1751366254390,0.719,2455.7,2455.6,1.49453]
[1751366254591,12.304,2455.7,2455.6,1.49453]
[1751366254992,13.11823,2455.7,2455.6,1.49453]
[1751366255787,12.304,2455.7,2455.6,1.49453]
[1751366257488,12.304,2455.7,2455.6,2.71356223]
[1751366258789,0.719,2455.7,2455.6,2.71356223]
[1751366258990,12.304,2455.7,2455.6,2.71356223]
[1751366261496,13.11823,2455.7,2455.6,2.71356223]
[1751366261692,15.44926519,2455.7,2455.6,0.45078798]
[1751366261886,0.81436,2455.3,2455.2,2.44058505]
[1751366262193,3.14539519,2455.3,2455.1,4.87845999]
[1751366262495,14.52069,2455.2,2455.1,2.44061505]
[1751366262890,14.52069,2455.2,2455.1,0.81442]
[1751366266096,13.7063,2455.2,2455.1,0.81442]
[1751366266304,18.07336519,2455.2,2454.7,1.62619505]
[1751366266505,18.07336519,2455.2,2454.7,0.81454]
[1751366266506,2.33103519,2454.8,2454.7,0.81454]
[1751366266702,0.8145,2454.9,2454.7,0.81454]
[1751366266998,0.6778,2454.8,2454.7,0.81454]
[1751366267200,1.49233,2454.8,2454.7,0.81454]
[1751366267406,0.6778,2454.8,2454.7,0.81454]
[1751366267596,1.49233,2454.8,2454.7,0.81454]
[1751366269704,0.6778,2454.8,2454.7,0.81454]
[1751366271606,60.17667,2455.0,2454.9,0.81449]
[1751366271808,71.76467,2455.0,2454.9,0.81449]
[1751366272703,0.81451,2454.9,2454.8,0.81451]
[1751366274311,12.39851,2454.9,2454.8,0.81451]
[1751366274712,0.81454,2454.8,2454.7,0.81454]
[1751366275411,0.81452,2454.9,2454.8,0.81451]
[1751366275611,12.39852,2454.9,2454.8,0.81451]
[1751366276007,0.81452,2454.9,2454.8,0.81451]
[1751366276213,12.39852,2454.9,2454.8,0.81451]
[1751366277511,0.81452,2454.9,2454.8,0.81451]
[1751366277806,12.39852,2454.9,2454.8,0.81451]
[1751366280213,0.81455,2454.8,2454.7,0.81454]
[1751366282813,2.18435,2454.8,2454.7,0.81454]
[1751366283018,0.81459,2454.7,2454.6,0.81457]
[1751366283212,1.46989,2454.7,2454.6,0.81457]
[1751366284015,0.6553,2454.7,2454.3,2.03669]
[1751366284214,0.6553,2454.7,2454.2,2.0368]
[1751366284215,0.81464,2454.6,2454.2,2.0368]
[1751366284518,0.8147,2454.4,2454.3,0.81467]
[1751366284722,12.3997,2454.4,2454.3,0.81467]
[1751366284911,13.055,2454.4,2454.3,0.81467]
[1751366285113,14.4549,2454.4,2454.3,0.81467]
[1751366285417,12.2403,2454.4,2454.3,0.81467]
[1751366285620,13.05496,2454.4,2454.3,0.81467]
[1751366286117,14.27699,2454.4,2453.9,1.62619505]
[1751366286316,0.81471,2454.3,2454.2,0.8147]
[1751366286615,14.45487,2454.4,2454.3,0.81469]
[1751366287409,14.45486,2454.4,2454.3,0.81469]
[1751366291922,18.6402,2454.4,2453.9,0.7138]
[1751366292221,2.33103519,2454.0,2453.9,0.81483]
[1751366292723,0.81483,2453.9,2453.8,0.81483]
[1751366292913,13.07533,2453.9,2453.8,0.81483]
[1751366294419,14.48563,2453.9,2453.8,0.81483]
[1751366294619,13.6708,2453.9,2453.8,0.81483]
[1751366295324,14.48563,2453.9,2453.8,0.81483]
[1751366295527,13.6708,2453.9,2453.8,0.81483]
[1751366296228,14.48563,2453.9,2453.8,0.81483]
[1751366296819,14.48563,2453.9,2453.5,5.02681519]
[1751366296820,0.81488,2453.8,2453.7,0.81487]
[1751366297628,0.81488,2453.8,2453.7,0.81489]
[1751366298226,15.19444,2453.9,2453.8,0.81486]
[1751366298828,0.81489,2453.8,2453.7,0.81487]
[1751366299130,4.48772519,2453.8,2453.7,0.81487]
[1751366300236,3.67283519,2453.8,2453.7,0.81487]
[1751366300433,1.3418,2453.8,2453.7,0.81487]
[1751366300634,13.78413,2453.9,2453.8,0.81486]
[1751366300836,0.81488,2453.8,2453.7,0.81486]
[1751366301135,3.14591519,2453.8,2453.7,0.81486]
[1751366301334,0.81493,2453.7,2453.6,0.81492]
[1751366302833,29.42322519,2453.8,2453.7,0.81489]
[1751366303736,41.01222519,2453.8,2453.7,0.81489]
[1751366305840,4.50122519,2453.8,2453.7,0.81489]
[1751366306042,41.00622519,2453.8,2453.7,0.81489]
[1751366306438,4.50122519,2453.8,2453.7,0.81489]
[1751366306644,0.81496,2453.6,2453.5,0.81491]
[1751366306942,0.81492,2453.7,2453.6,0.81489]
[1751366308346,12.39892,2453.7,2453.6,0.81489]
[1751366308849,13.79302,2453.7,2453.6,0.81489]
[1751366309347,0.815,2453.5,2453.4,0.81497]
[1751366309541,0.81502,2453.4,2453.3,0.815]
[1751366310448,12.39902,2453.4,2453.3,0.815]
[1751366313248,11.584,2453.4,2453.3,0.815]
[1751366313748,0.81499,2453.4,2453.3,0.815]
[1751366313948,11.585,2453.4,2453.3,0.815]
[1751366314151,12.39999,2453.4,2453.3,0.815]
[1751366314944,11.585,2453.4,2453.3,0.815]
[1751366315449,1.52588,2453.5,2453.4,0.81499]
[1751366315748,38.03088,2453.5,2453.4,0.81499]
[1751366317753,1.52588,2453.5,2453.4,0.81499]
[1751366317950,38.03088,2453.5,2453.4,0.81499]
[1751366318151,1.52588,2453.5,2453.4,0.81499]
[1751366318346,38.02988,2453.5,2453.4,0.81499]
[1751366319145,40.36091519,2453.5,2453.4,0.81499]
[1751366319352,41.76031519,2453.5,2453.4,0.81499]
[1751366321148,40.94533519,2453.5,2453.4,0.81499]
[1751366321453,39.54593519,2453.5,2453.4,0.81499]
[1751366322052,40.36089519,2453.5,2453.4,0.81499]
[1751366322454,37.2149,2453.5,2453.4,0.81499]
[1751366323154,37.2129,2453.5,2453.4,0.81499]
[1751366323746,38.02786,2453.5,2453.4,0.81499]
[1751366324252,1.52586,2453.5,2453.4,0.81499]
[1751366324451,37.2129,2453.5,2453.4,0.81499]
[1751366324856,38.02786,2453.5,2453.4,0.81499]
[1751366325256,37.2129,2453.5,2453.4,0.81499]
[1751366325554,38.02786,2453.5,2453.4,0.81499]
[1751366325758,37.2129,2453.5,2453.4,0.81499]
[1751366326556,0.7109,2453.5,2453.4,0.81499]
[1751366326758,37.2119,2453.5,2453.4,0.81499]
[1751366327655,38.02586,2453.5,2453.4,0.81499]
[1751366327855,1.52586,2453.5,2453.4,0.81499]
[1751366328057,37.2109,2453.5,2453.4,0.81499]
[1751366328453,38.02586,2453.5,2453.4,0.81499]
[1751366328658,1.52586,2453.5,2453.4,0.81499]
[1751366328859,38.02686,2453.5,2453.4,0.81499]
[1751366329160,0.81512,2453.0,2452.9,1.21909546]
[1751366329461,41.16207038,2453.0,2452.6,0.7167513]
[1751366329753,2.7314,2452.9,2452.6,0.7167513]
[1751366329957,36.5,2452.8,2452.6,0.7167513]
[1751366330159,37.31519,2452.8,2452.7,0.7167513]
[1751366330457,1.385,2452.9,2452.8,0.81519]
[1751366330651,0.81509,2453.1,2452.7,3.04563519]
[1751366330853,1.3766,2453.4,2452.9,2.33103519]
[1751366331052,36.5,2453.3,2453.2,0.81504]
[1751366331254,60.0916,2453.4,2453.3,0.81502]
[1751366331554,1.4262,2453.7,2453.5,0.81494]
[1751366331858,0.8149,2453.7,2453.5,0.81494]
[1751366332053,36.501,2453.6,2453.5,0.81494]
[1751366332254,36.501,2453.6,2453.5,0.41739752]
[1751366332454,36.501,2453.6,2453.4,1.52697]
[1751366332658,37.31593,2453.6,2453.4,1.52697]
[1751366332959,11.586,2453.5,2453.4,1.52697]
[1751366333154,3.14594519,2453.7,2453.4,1.52697]
[1751366333358,36.501,2453.6,2453.4,1.52697]
[1751366333559,37.31593,2453.6,2453.4,1.52697]
[1751366333759,11.586,2453.5,2453.4,1.52697]
[1751366334361,0.81499,2453.4,2453.2,0.81504]
[1751366334552,3.14605519,2453.3,2453.2,0.7147]
[1751366334756,2.03769,2453.2,2452.6,0.81522]
[1751366334957,3.14623519,2452.8,2452.6,1.52992]
[1751366335155,14.73223519,2452.8,2452.6,1.52992]
[1751366335356,0.81522,2452.7,2452.6,0.7147]
[1751366335557,0.718,2452.9,2452.6,0.7147]
[1751366335761,2.0375,2453.4,2452.6,0.7147]
[1751366335960,0.81512,2453.1,2452.6,3.04573519]
[1751366336265,11.579,2453.0,2452.8,0.81517]
[1751366336460,11.579,2453.0,2452.7,1.4229]
[1751366336461,11.579,2453.0,2452.9,0.81516]
[1751366336660,0.81517,2452.9,2452.7,3.86430505]
[1751366336963,0.81516,2452.9,2452.6,3.15612505]
[1751366337159,14.61303519,2453.0,2452.6,3.15612505]
[1751366337160,0.8152,2452.8,2452.6,3.15612505]
[1751366338264,0.8152,2452.8,2452.6,2.34089505]
[1751366338265,0.81522,2452.7,2452.6,2.34089505]
[1751366338464,2.33103519,2452.8,2452.6,2.34089505]
[1751366338465,0.81521,2452.8,2452.6,3.15614505]
[1751366338667,0.81521,2452.8,2452.6,1.52995]
[1751366339265,0.81521,2452.8,2452.6,3.15614505]
[1751366339464,0.81521,2452.8,2452.7,0.81522]
[1751366339660,3.85001519,2452.9,2452.7,0.81522]
[1751366340365,0.81519,2452.8,2452.7,0.81522]
[1751366340567,0.81519,2452.8,2452.6,3.15612505]
[1751366340763,61.05503519,2452.7,2451.6,5.66857965]
[1751366340961,61.05503519,2452.7,2451.9,2.33103519]
[1751366340962,2.33103519,2452.4,2451.9,2.33103519]
[1751366341164,2.0965,2452.6,2452.1,2.33103519]
[1751366341364,0.81532,2452.4,2452.1,3.14644519]
[1751366341568,36.523,2452.5,2451.3,3.79214546]
[1751366341763,41.52849802,2452.6,2449.9,7.01536065]
[1751366341964,2.33103519,2451.0,2449.9,7.01536065]
[1751366342269,28.446,2451.3,2450.6,2.33103519]
[1751366342466,2.33103519,2452.0,2450.8,2.33103519]
[1751366342467,1.63204486,2451.2,2450.8,2.33103519]
[1751366342766,1.63193304,2451.1,2451.0,3.14682519]
[1751366342967,28.592,2451.9,2451.3,0.81567]
[1751366343169,28.592,2451.9,2451.6,0.81557]
[1751366343364,40.8,2452.2,2451.4,13.338]
[1751366343564,28.72,2452.1,2451.5,2.33103519]
[1751366343769,28.72,2452.1,2451.8,0.81549]
[1751366343966,28.794,2452.2,2451.9,0.81548]
[1751366344170,31.12503519,2452.2,2451.4,74.39303519]
[1751366344365,2.33103519,2452.2,2451.4,74.39303519]
[1751366344675,3.25640522,2451.9,2451.4,72.062]
[1751366344974,3.25640522,2451.9,2451.7,0.81554]
[1751366345166,5.58744041,2452.0,2451.4,72.062]
[1751366345366,5.58744041,2452.0,2451.9,0.81549]
[1751366345565,2.33103519,2452.0,2451.9,0.81549]
[1751366345768,3.25640522,2452.1,2452.0,0.81546]
[1751366345967,5.58744041,2452.2,2452.1,0.81542]
[1751366346167,40.8,2452.5,2452.1,0.44418981]
[1751366346168,2.33103519,2452.5,2452.1,0.44418981]
[1751366346367,4.06398797,2452.3,2452.0,4.69207425]
[1751366346569,2.33103519,2452.5,2452.0,4.69207425]
[1751366346774,2.33103519,2452.5,2452.4,0.81532]
[1751366347379,5.56237084,2452.7,2452.1,2.03857]
[1751366347566,5.56237084,2452.7,2452.1,4.36960519]
[1751366347761,3.23133565,2452.3,2452.2,0.81539]
[1751366348064,4.06398797,2453.0,2452.1,2.33103519]
[1751366348065,6.39502316,2453.0,2452.9,0.81516]
[1751366348272,2.33103519,2453.0,2452.9,0.81516]
[1751366348474,4.73958797,2453.5,2452.8,13.341]
[1751366348675,4.06398797,2453.3,2453.2,0.81506]
[1751366348873,4.06398797,2453.3,2452.8,15.67203519]
[1751366349065,2.33103519,2453.4,2452.8,15.67203519]
[1751366349066,4.03517863,2453.2,2453.1,0.81509]
[1751366349372,2.33103519,2453.4,2453.1,0.81509]
[1751366349373,2.33103519,2453.4,2453.3,0.81502]
[1751366349571,6.04277863,2453.8,2453.4,0.81499]
[1751366349572,4.74117863,2453.8,2453.4,0.81499]
[1751366349872,0.8149,2453.7,2453.4,1.89852891]
[1751366350271,0.8149,2453.7,2453.5,0.38225741]
[1751366350472,0.8149,2453.7,2453.4,1.89852891]
[1751366350672,0.8149,2453.7,2453.5,0.38225353]
[1751366350872,0.8149,2453.7,2453.4,1.89852891]
[1751366351172,0.81491,2453.7,2453.5,0.81494]
[1751366351367,0.81491,2453.7,2453.6,0.38230953]
[1751366351674,5.19830884,2453.8,2453.4,14.42355891]
[1751366351865,5.19830884,2453.8,2453.7,0.81489]
[1751366352065,4.73996376,2453.8,2453.7,0.81489]
[1751366352270,0.706,2453.8,2453.7,0.81489]
[1751366352876,1.52086,2453.8,2453.7,0.81489]
[1751366353375,1.52086,2453.8,2453.6,0.8149]
[1751366353573,5.63820104,2453.9,2453.8,0.81486]
[1751366353880,5.63820104,2454.0,2453.9,0.81483]
[1751366354076,5.63820104,2454.0,2453.9,14.15383]
[1751366354866,5.63820104,2454.0,2453.9,9.26149677]
[1751366355073,1.39832215,2454.0,2453.9,10.45847556]
[1751366355274,1.39832215,2454.0,2453.9,10.07632677]
[1751366355473,1.39832215,2454.0,2453.9,10.45848546]
[1751366357979,4.62889909,2454.0,2453.9,10.45848546]
[1751366358581,1.39832215,2454.0,2453.9,10.45848546]
[1751366359080,1.39832215,2454.0,2453.9,10.45845565]
[1751366359680,1.39832215,2454.0,2453.9,15.45845565]
[1751366360380,1.39832215,2454.0,2453.9,10.45845565]
[1751366360783,1.39832215,2454.0,2453.9,10.91881318]
[1751366362985,6.07456631,2455.0,2454.0,4.07398]
[1751366363287,0.6965,2454.7,2454.6,0.81456]
[1751366363684,1.51106,2454.7,2454.5,13.334]
[1751366363882,0.81459,2454.6,2454.5,12.51794569]
[1751366364084,1.51108,2454.7,2454.6,0.81459]
[1751366366890,6.00338884,2454.7,2454.6,0.81459]
[1751366367794,11.00338884,2454.7,2454.6,0.81459]
[1751366368490,6.00338884,2454.7,2454.6,0.81459]
[1751366371997,3.84918479,2454.7,2454.6,0.81459]
[1751366374995,5.35315048,2454.7,2454.6,0.81459]
[1751366376498,1.50396569,2454.7,2454.6,0.81459]
[1751366376696,1.50396569,2454.7,2454.6,2.11449]
[1751366378193,1.50396569,2454.7,2454.6,3.22034705]
[1751366378694,0.81453,2454.9,2454.8,0.81449]
[1751366378891,0.81456,2454.7,2454.6,2.11448]
[1751366379098,0.81456,2454.7,2454.6,1.24403096]
[1751366379099,3.15266479,2454.7,2454.6,1.24403096]
[1751366380396,0.81456,2454.7,2454.6,1.24403096]
[1751366380895,0.81456,2454.7,2454.6,1.24404096]
[1751366382497,0.81456,2454.7,2454.6,2.60314096]
[1751366383398,0.81456,2454.7,2454.6,1.78855096]
[1751366384299,0.81456,2454.7,2454.6,0.81459]
[1751366385202,0.81456,2454.7,2454.5,12.38655569]
[1751366385203,0.81459,2454.6,2454.5,12.38655569]
[1751366385503,3.15269479,2454.6,2454.5,13.20118569]
[1751366386805,7.1910911,2454.6,2454.5,13.20118569]
[1751366387006,3.15269479,2454.6,2454.5,13.20118569]
[1751366387205,3.15269479,2454.6,2454.5,8.3108158]
[1751366387206,7.20971049,2454.6,2454.5,8.3108158]
[1751366387406,3.15269479,2454.6,2454.5,8.3108158]
[1751366388600,7.20971049,2454.6,2454.5,8.3108158]
[1751366390608,8.45000852,2454.6,2454.5,8.3108158]
[1751366391698,8.45000852,2454.6,2454.5,6.8129858]
[1751366392109,8.45000852,2454.6,2454.5,7.6276158]
[1751366393209,1.24029803,2454.6,2454.5,7.6276158]
[1751366394411,2.05488803,2454.6,2454.5,7.6276158]
[1751366395714,1.24029803,2454.6,2454.5,7.6276158]
[1751366396209,1.24029803,2454.6,2454.5,38.19672059]
[1751366396814,0.81447,2455.0,2454.7,0.81456]
[1751366397014,0.81447,2455.0,2454.9,0.81446]
[1751366397609,0.81443,2455.2,2455.1,0.81439]
[1751366397816,6.45263104,2455.2,2455.1,0.81439]
[1751366398214,0.81443,2455.2,2455.1,0.81439]
[1751366399116,3.15253479,2455.2,2455.1,0.81439]
[1751366399316,0.81447,2455.1,2455.0,0.81443]
[1751366400613,0.81446,2455.0,2454.9,1.49185]
[1751366400815,3.15256479,2455.0,2454.9,0.6774]
[1751366401319,0.81449,2454.9,2454.8,0.8145]
[1751366401519,3.15259479,2454.9,2454.8,0.8145]
[1751366402321,2.33810479,2455.1,2455.0,0.81446]
[1751366402621,5.63820104,2455.2,2455.1,0.81443]
[1751366402918,3.84749479,2455.3,2455.2,0.81439]
[1751366403111,9.48569583,2455.3,2455.2,0.81439]
[1751366403311,5.63820104,2455.3,2455.2,0.6643]
[1751366403719,5.63820104,2455.3,2455.2,1.47869]
[1751366404016,5.63820104,2455.4,2455.3,0.81436]
[1751366404219,6.45253104,2455.4,2455.3,0.81436]
[1751366404913,0.81433,2455.4,2455.3,0.81436]
[1751366405315,6.45253104,2455.4,2455.3,0.81436]
[1751366405716,0.81433,2455.4,2455.3,0.81436]
[1751366405917,0.81439,2455.2,2455.1,10.05165175]
[1751366406116,6.40335712,2455.2,2455.1,10.05165175]
[1751366406316,7.21595415,2455.2,2455.1,10.05165175]
[1751366407323,3.15249479,2455.2,2455.1,6.38481464]
[1751366408024,4.06392927,2455.2,2455.1,6.38481464]
[1751366408918,5.11557988,2455.2,2455.1,6.38481464]
[1751366409825,7.45368467,2455.2,2455.1,5.57039464]
[1751366410026,4.2041454,2455.2,2455.1,5.57039464]
[1751366410428,4.8704454,2455.2,2455.1,5.57039464]
[1751366410918,4.8704454,2455.2,2455.1,6.38482464]
[1751366412126,2.53234061,2455.2,2455.1,6.38482464]
[1751366413428,7.31016881,2455.5,2455.4,0.81433]
[1751366413729,4.29803598,2455.5,2455.4,3.15243479]
[1751366414130,1.05132653,2455.5,2455.4,3.15243479]
[1751366414623,1.05132653,2455.5,2455.4,5.14583479]
[1751366415325,1.86561653,2455.5,2455.4,5.14583479]
[1751366415627,1.86561653,2455.5,2455.4,2.80773]
[1751366416028,1.86561653,2455.5,2455.4,0.81433]
[1751366416427,0.81433,2455.4,2455.3,1.46934]
[1751366417927,0.81433,2455.4,2455.3,1.46936]
[1751366420531,0.81431,2455.6,2455.5,0.81426]
[1751366421827,0.81431,2455.6,2455.3,1.46936]
[1751366421828,0.81426,2455.7,2455.6,0.81423]
[1751366423435,0.81429,2455.5,2455.4,3.15239479]
[1751366423732,0.81429,2455.5,2455.4,0.81429]
[1751366424834,2.03558,2455.8,2455.5,0.81423]
[1751366424835,0.81429,2455.6,2455.5,0.81423]
[1751366425430,0.81425,2455.8,2455.4,4.37392479]
[1751366425637,0.81429,2455.6,2455.5,0.81424]
[1751366425935,1.77333929,2455.6,2455.5,0.81424]
[1751366426136,0.81429,2455.5,2455.3,0.655]
[1751366426339,0.81429,2455.5,2455.4,0.8143]
[1751366426529,1.77347083,2455.5,2455.4,0.8143]
[1751366431539,0.81433,2455.4,2455.3,1.46934]
[1751366431831,1.77351083,2455.4,2455.3,1.46934]